[Event "10th LBHM Open 2024"]
[Site "Pune"]
[Date "2024.05.21"]
[Round "8.9"]
[White "Sherla Prathamesh"]
[Black "Bhoir Paras Dilip"]
[Result "1/2-1/2"]
[ECO "A19"]
[WhiteElo "1855"]
[BlackElo "1968"]
[PlyCount "60"]
[EventDate "2024.05.21"]
[EventType "swiss"]
[EventCountry "IND"]
[TimeControl "5400+30"]

1. c4 {[%emt 0:05:36]} e6 {[%emt 0:00:06]} 2. e4 {[%emt 0:00:05]} c5 {[%emt 0:00:33]} 3. Nc3 {[%emt 0:00:08]} Nc6 {[%emt 0:00:18]} 4. g3 {[%emt 0:01:48]} Nf6 {[%emt 0:00:28]} 5. Bg2 {[%emt 0:02:17]} d5 {[%emt 0:00:15]} 6. cxd5 {[%emt 0:04:12]} exd5 {[%emt 0:00:08]} 7. exd5 {[%emt 0:01:19]} Nb4 {[%emt 0:00:18]} 8. d3 {[%emt 0:01:18]} Be7 {[%emt 0:05:39]} 9. Nge2 {[%emt 0:03:41]} Nfxd5 {[%emt 0:00:45]} 10. Nxd5 {[%emt 0:01:44]} Nxd5 {[%emt 0:00:12]} 11. O-O {[%emt 0:02:50]} O-O {[%emt 0:00:16]} 12. d4 {[%emt 0:01:35]} Be6 {[%emt 0:00:05]} 13. dxc5 {[%emt 0:02:24]} Bxc5 {[%emt 0:00:04]} 14. Nf4 {[%emt 0:02:39]} Nxf4 {[%emt 0:00:12]} 15. Bxf4 {[%emt 0:00:12]} Qb6 {[%emt 0:00:10]} 16. b3 {[%emt 0:06:34]} Rad8 {[%emt 0:04:46]} 17. Qh5 {[%emt 0:02:51]} Qa5 {[%emt 0:04:24]} 18. Be3 {[%emt 0:04:24]} b6 {[%emt 0:02:05]} 19. Bxc5 {[%emt 0:01:18]} bxc5 {[%emt 0:01:54]} 20. Rfc1 {[%emt 0:02:27]} Rc8 {[%emt 0:00:45]} 21. Bd5 {[%emt 0:06:12]} Bxd5 {[%emt 0:03:31]} 22. Qxd5 {[%emt 0:00:07]} Rfd8 {[%emt 0:00:08]} 23. Qc4 {[%emt 0:02:23]} h6 {[%emt 0:02:09]} 24. Rc2 {[%emt 0:06:02]} Rd2 {[%emt 0:14:17]} 25. Qc3 {[%emt 0:03:58]} Qxc3 {[%emt 0:00:52]} 26. Rxc3 {[%emt 0:00:02]} Re8 {[%emt 0:00:14]} 27. Rxc5 {[%emt 0:02:06]} Ree2 {[%emt 0:00:10]} 28. Rf5 {[%emt 0:00:17]} Rxa2 {[%emt 0:00:08]} 29. Rxa2 {[%emt 0:00:17]} Rxa2 {[%emt 0:00:03]} 30. Rb5 {[%emt 0:00:19]} a5 {[%emt 0:00:24]} 1/2-1/2

[Event "10th LBHM Open 2024"]
[Site "Pune"]
[Date "2024.05.21"]
[Round "8.10"]
[White "Roy Chowdhury, Saptarshi"]
[Black "Gorli Nyna"]
[Result "1-0"]
[ECO "A08"]
[WhiteElo "2249"]
[BlackElo "1774"]
[PlyCount "89"]
[EventDate "2024.05.21"]
[EventType "swiss"]
[EventCountry "IND"]
[TimeControl "5400+30"]

1. e4 {[%emt 0:00:03]} c5 {[%emt 0:00:06]} 2. Nf3 {[%emt 0:00:06]} e6 {[%emt 0:00:06]} 3. d3 {[%emt 0:00:03]} Nc6 {[%emt 0:00:09]} 4. g3 {[%emt 0:00:07]} g6 {[%emt 0:01:13]} 5. Bg2 {[%emt 0:00:19]} Bg7 {[%emt 0:00:05]} 6. c3 {[%emt 0:00:35]} d5 {[%emt 0:01:15]} 7. Nbd2 {[%emt 0:02:18]} Nf6 {[%emt 0:00:11]} 8. O-O {[%emt 0:00:19]} O-O {[%emt 0:00:20]} 9. Re1 {[%emt 0:01:16]} Qc7 {[%emt 0:00:32]} 10. Nf1 {[%emt 0:00:54]} b5 {[%emt 0:03:55]} 11. e5 {[%emt 0:02:08]} Nd7 {[%emt 0:00:16]} 12. Bf4 {[%emt 0:00:05]} a5 {[%emt 0:04:02]} 13. h4 {[%emt 0:01:32]} Ba6 {[%emt 0:01:25]} 14. N1h2 {[%emt 0:00:29]} a4 {[%emt 0:05:38]} 15. Ng4 {[%emt 0:01:44]} b4 {[%emt 0:11:38]} 16. a3 {[%emt 0:00:47]} bxc3 {[%emt 0:05:16]} 17. bxc3 {[%emt 0:00:07]} Rfb8 {[%emt 0:05:27]} 18. Nf6+ {[%emt 0:06:26]} Kh8 {[%emt 0:01:16]} 19. Ng5 {[%emt 0:02:23]} Nf8 {[%emt 0:09:52]} 20. Bxd5 {[%emt 0:24:06]} Bb7 {[%emt 0:18:53]} 21. Bg2 {[%emt 0:01:49]} Rd8 {[%emt 0:05:34]} 22. Rb1 {[%emt 0:02:01]} Ra7 {[%emt 0:00:40]} 23. Rb5 {[%emt 0:08:33]} c4 {[%emt 0:05:33]} 24. d4 {[%emt 0:00:48]} Na5 {[%emt 0:02:53]} 25. Rc5 {[%emt 0:03:04]} Qe7 {[%emt 0:00:09]} 26. Bxb7 {[%emt 0:03:08]} Qxb7 {[%emt 0:00:33]} 27. Qxa4 {[%emt 0:04:18]} Nb3 {[%emt 0:00:43]} 28. Rb5 {[%emt 0:00:05]} Qc7 {[%emt 0:03:34]} 29. Qb4 {[%emt 0:00:04]} Rda8 {[%emt 0:01:27]} 30. d5 {[%emt 0:01:05]} h6 {[%emt 0:00:48]} 31. Nge4 {[%emt 0:03:37]} Nd7 {[%emt 0:01:22]} 32. Nxd7 {[%emt 0:01:26]} Qxd7 {[%emt 0:00:02]} 33. Rb8+ {[%emt 0:00:16]} Rxb8 {[%emt 0:01:36]} 34. Qxb8+ {[%emt 0:00:50]} Kh7 {[%emt 0:00:02]} 35. Nf6+ {[%emt 0:00:35]} Bxf6 {[%emt 0:00:04]} 36. exf6 {[%emt 0:00:04]} g5 {[%emt 0:01:56]} 37. Qf8 {[%emt 0:00:23]} Kg6 {[%emt 0:00:12]} 38. Qg7+ {[%emt 0:00:10]} Kf5 {[%emt 0:00:06]} 39. Re5+ {[%emt 0:00:09]} Kg4 {[%emt 0:00:05]} 40. Kg2 {[%emt 0:00:04]} Qxd5+ {[%emt 0:00:15]} 41. Rxd5 {[%emt 0:00:04]} exd5 {[%emt 0:00:03]} 42. hxg5 {[%emt 0:00:11]} Kf5 {[%emt 0:00:15]} 43. gxh6 {[%emt 0:00:06]} Ke6 {[%emt 0:00:03]} 44. h7 {[%emt 0:00:12]} Ra8 {[%emt 0:00:05]} 45. h8=Q {[%emt 0:00:43]} 1-0

[Event "10th LBHM Open 2024"]
[Site "Pune"]
[Date "2024.05.22"]
[Round "9.1"]
[White "Neelash Saha"]
[Black "Ghosh, Diptayan"]
[Result "1/2-1/2"]
[ECO "E05"]
[WhiteElo "2483"]
[BlackElo "2564"]
[Annotator "RC"]
[PlyCount "31"]
[EventDate "2024.05.21"]
[EventType "swiss"]
[EventCountry "IND"]
[SourceTitle "playchess.com"]
[Source "ChessBase"]
[SourceQuality "1"]
[TimeControl "5400+30"]

1. d4 {[%emt 0:03:30]} Nf6 {[%emt 0:02:42]} 2. c4 {[%emt 0:00:21]} e6 {[%emt 0:00:03]} 3. Nf3 {[%emt 0:00:29]} d5 {[%emt 0:00:09]} 4. g3 {[%emt 0:00:14]} Be7 {[%emt 0:00:23]} 5. Bg2 {[%emt 0:00:11]} O-O {[%emt 0:00:05]} 6. O-O {[%emt 0:00:04]} dxc4 {[%emt 0:00:08]} 7. Qc2 {[%emt 0:00:06]} a6 {[%emt 0:00:25]} 8. Qxc4 {[%emt 0:00:10]} b5 {[%emt 0:00:04]} 9. Qc2 {[%emt 0:00:06]} Bb7 {[%emt 0:00:07]} 10. Bd2 {[%emt 0:00:11]} Be4 {[%emt 0:00:42]} 11. Qc1 {[%emt 0:00:08]} Bb7 {[%emt 0:00:22]} 12. Qc2 {[%emt 0:00:22]} Be4 {[%emt 0:00:20]} 13. Qc1 {[%emt 0:00:06]} Bb7 {[%emt 0:00:04]} 14. Qc2 {[%emt 0:01:19]} Be4 {[%emt 0:00:03]} 15. Qc1 {[%emt 0:00:03]} Bb7 {[%emt 0:00:06]} 16. Qc2 {[%emt 0:00:04]} 1/2-1/2

[Event "10th LBHM Open 2024"]
[Site "Pune"]
[Date "2024.05.22"]
[Round "9.2"]
[White "Aronyak Ghosh"]
[Black "Md Imran"]
[Result "1-0"]
[ECO "A33"]
[WhiteElo "2536"]
[BlackElo "2184"]
[Annotator "TA"]
[PlyCount "73"]
[EventDate "2024.05.21"]
[EventType "swiss"]
[EventCountry "IND"]
[SourceTitle "playchess.com"]
[Source "ChessBase"]
[SourceQuality "1"]
[TimeControl "5400+30"]

{[%evp 16,73,-16,-9,114,87,155,166,152,115,117,114,173,145,133,114,133,152,134,119,134,138,164,177,161,161,147,175,156,116,137,108,113,103,102,101,99,89,170,167,178,162,158,154,176,176,182,182,251,251,290,289,295,278,329,328,327,327,29973,29975]} 1. c4 {[%emt 0:04:49]} c5 {[%emt 0:00:16]} 2. Nf3 {[%emt 0:01:40]} Nf6 {[%emt 0:00:33]} 3. d4 {[%emt 0:01:49]} cxd4 {[%emt 0:00:28]} 4. Nxd4 {[%emt 0:00:07]} Nc6 {[%emt 0:00:18][%cal Bb8c6,Bc6e5,Be5g6][%mdl 32]} 5. Nc3 {[%emt 0:04:31]} e6 {[%emt 0:09:46]} 6. g3 {[%emt 0:07:28]} Qb6 {[%emt 0:07:27]} 7. Nb3 {[%emt 0:06:35]} Ne5 {[%emt 0:04:20]} 8. e4 {[%emt 0:00:09]} Bb4 {[%emt 0:02:06]} 9. Qe2 {[%emt 0:00:06]} Qc6 {[%emt 0:05:53]} (9... d6 $1 $11) 10. Bd2 {[%emt 0:08:04]} (10. f4 {with more complications.} Nxe4 11. Bg2 Nxc3 12. bxc3 Bxc3+ 13. Bd2) 10... b6 {[%emt 0:01:12] [#]} (10... Bxc3 $142 11. Bxc3 d6) 11. f4 $1 $16 {[%emt 0:07:14]} Ng6 {[%emt 0:02:30] White is clearly better.} 12. Bg2 {[%emt 0:02:09] And now e5 would win.} Bb7 {[%emt 0:00:10]} 13. Nd4 {[%emt 0:00:35]} Qc5 {[%emt 0:00:58]} (13... Qc8 $16) 14. e5 {[%emt 0:01:39]} Bxg2 {[%emt 0:09:25]} 15. Qxg2 {[%emt 0:00:14]} Nxe5 {[%emt 0:00:26]} 16. fxe5 {[%emt 0:06:56]} (16. Qxa8+ Ke7 $14) 16... Qxe5+ {[%emt 0:00:26]} 17. Nde2 {[%emt 0:00:06]} Rc8 {[%emt 0:00:23][%cal Oe8g8]} 18. a3 {[%emt 0:01:24]} Bxc3 {[%emt 0:03:16]} 19. Bxc3 {[%emt 0:00:38][%cal Bd2c3,Bc3g7,Bg7h6,Bh6c1,Bc1e3][%mdl 32]} Qe4 {[%emt 0:00:02]} 20. Qxe4 {[%emt 0:02:25]} Nxe4 {[%emt 0:00:07]} 21. Bxg7 {[%emt 0:01:03]} Rg8 {[%emt 0:00:01]} 22. Bh6 {[%emt 0:00:55] Strongly threatening b3.} Rxc4 {[%emt 0:00:12]} 23. Rc1 {[%emt 0:00:08]} Rxc1+ {[%emt 0:00:07]} 24. Bxc1 {[%emt 0:00:06]} Ke7 {[%emt 0:00:07]} 25. Nc3 {[%emt 0:00:17]} Nxc3 {[%emt 0:01:24]} 26. bxc3 {[%emt 0:00:03][%mdl 4096] Endgame. KRB-KR} Rc8 {[%emt 0:01:03]} (26... e5 $16) 27. Kd2 $18 {[%emt 0:02:01]} e5 {[%emt 0:00:45]} 28. Kd3 {[%emt 0:00:39]} Ke6 {[%emt 0:00:29]} 29. Be3 {[%emt 0:00:33]} d5 {[%emt 0:00:32]} 30. a4 {[%emt 0:02:44]} h5 {[%emt 0:01:32]} 31. Ra1 {[%emt 0:01:12]} Rc6 {[%emt 0:01:27]} (31... Rc4 $142 32. a5 h4 33. axb6 axb6) 32. a5 {[%emt 0:01:38]} bxa5 {[%emt 0:00:07]} 33. Rxa5 {[%emt 0:00:04]} ({Don't play} 33. Bxa7 $6 Ra6 34. Bc5 a4 $16) 33... a6 {[%emt 0:00:04]} 34. Ra4 {[%emt 0:00:03]} Kf5 {[%emt 0:00:45]} 35. Rh4 {[%emt 0:00:41]} Kg6 {[%emt 0:00:04]} 36. g4 {[%emt 0:00:22]} hxg4 $2 {[%emt 0:00:04] [#]} (36... Kg7 $18 37. Rxh5 (37. gxh5 f5 $18) 37... f6) 37. Rh6+ {[%emt 0:00:02] Weighted Error Value: White=0.08 (flawless) /Black=0.47.  Mistake:       	---       	Black=5      OK:         	White=11    	Black=10     Best:        	White=1     	Black=2      Strong:       	White=1     	---} 1-0

[Event "10th LBHM Open 2024"]
[Site "Pune"]
[Date "2024.05.22"]
[Round "9.3"]
[White "Ratnakaran, K.."]
[Black "Sharnarthi Viresh"]
[Result "1-0"]
[ECO "B50"]
[WhiteElo "2275"]
[BlackElo "2078"]
[Annotator "RC"]
[PlyCount "97"]
[EventDate "2024.05.21"]
[EventType "swiss"]
[EventCountry "IND"]
[SourceTitle "playchess.com"]
[Source "ChessBase"]
[SourceQuality "1"]
[TimeControl "5400+30"]

1. e4 {[%emt 0:00:02]} c5 {[%emt 0:00:06]} 2. Nf3 {[%emt 0:00:04]} d6 {[%emt 0:00:04]} 3. c3 {[%emt 0:00:04]} Nf6 {[%emt 0:00:09]} 4. h3 {[%emt 0:00:04]} Nc6 {[%emt 0:00:07]} 5. Bd3 {[%emt 0:00:05]} g6 {[%emt 0:01:01]} 6. O-O {[%emt 0:00:09]} Bg7 {[%emt 0:00:03]} 7. Re1 {[%emt 0:00:04]} O-O {[%emt 0:00:10]} 8. Bf1 {[%emt 0:00:04]} e5 {[%emt 0:04:03]} 9. d3 {[%emt 0:00:10]} d5 {[%emt 0:03:32]} 10. Nbd2 {[%emt 0:00:21]} h6 {[%emt 0:01:02]} 11. exd5 {[%emt 0:00:17]} Nxd5 {[%emt 0:00:06]} 12. Nc4 {[%emt 0:00:24]} Re8 {[%emt 0:00:40]} 13. a4 {[%emt 0:00:05]} b6 {[%emt 0:00:12]} 14. Nfd2 {[%emt 0:01:33]} f5 {[%emt 0:03:13]} 15. Nf3 {[%emt 0:02:04]} Qc7 {[%emt 0:02:31]} 16. d4 {[%emt 0:02:40]} cxd4 {[%emt 0:00:28]} 17. cxd4 {[%emt 0:00:41]} e4 {[%emt 0:00:07]} 18. Nfe5 {[%emt 0:00:05]} Nxe5 {[%emt 0:00:52]} 19. Nxe5 {[%emt 0:02:03]} Bxe5 {[%emt 0:00:42]} 20. dxe5 {[%emt 0:00:08]} Be6 {[%emt 0:00:02]} 21. Bxh6 {[%emt 0:05:43]} Qxe5 {[%emt 0:01:00]} 22. Qd2 {[%emt 0:00:54]} Kf7 {[%emt 0:13:30]} 23. f3 {[%emt 0:06:06]} Nf6 {[%emt 0:00:34]} 24. Bf4 {[%emt 0:02:34]} Qd5 {[%emt 0:01:35]} 25. Qf2 {[%emt 0:00:37]} exf3 {[%emt 0:00:38]} 26. gxf3 {[%emt 0:00:08]} Qb3 {[%emt 0:06:25]} 27. Be5 {[%emt 0:04:54]} Rac8 {[%emt 0:19:32]} 28. a5 {[%emt 0:06:08]} Rc2 {[%emt 0:01:35]} 29. Qh4 {[%emt 0:01:47]} Nh5 {[%emt 0:00:50]} 30. Ra3 {[%emt 0:05:20]} Qd5 {[%emt 0:00:09]} 31. axb6 {[%emt 0:00:14]} axb6 {[%emt 0:00:24]} 32. Rae3 {[%emt 0:16:37]} Qc5 {[%emt 0:07:18]} 33. b4 {[%emt 0:04:55]} Qd5 {[%emt 0:01:09]} 34. Qg5 {[%emt 0:04:26]} Qd8 {[%emt 0:05:53]} 35. Qh6 {[%emt 0:06:18]} Rg8 {[%emt 0:00:43]} 36. Ra3 {[%emt 0:04:19]} Qe7 {[%emt 0:06:52]} 37. Ra6 {[%emt 0:04:05]} Qb7 {[%emt 0:08:37]} 38. Qe3 {[%emt 0:01:43]} Re8 {[%emt 0:08:33]} 39. Rxb6 {[%emt 0:00:43]} Qd5 {[%emt 0:00:34]} 40. Rd6 {[%emt 0:04:04]} Qb7 {[%emt 0:04:33]} 41. b5 {[%emt 0:00:22]} Re7 {[%emt 0:00:25]} 42. b6 {[%emt 0:01:36]} f4 {[%emt 0:00:39]} 43. Bxf4 {[%emt 0:01:09]} Nxf4 {[%emt 0:00:02]} 44. Qxf4+ {[%emt 0:00:05]} Bf5 {[%emt 0:00:05]} 45. Qh4 {[%emt 0:02:05]} Be6 {[%emt 0:01:31]} 46. Qh7+ {[%emt 0:00:18]} Kf6 {[%emt 0:00:42]} 47. Rexe6+ {[%emt 0:00:16]} Kf5 {[%emt 0:00:31]} 48. Qxg6+ {[%emt 0:00:19]} Kf4 {[%emt 0:00:06]} 49. Qg4# {[%emt 0:00:05]} 1-0

[Event "10th LBHM Open 2024"]
[Site "Pune"]
[Date "2024.05.22"]
[Round "9.4"]
[White "Nitin, S.."]
[Black "Daksh Goyal"]
[Result "1-0"]
[ECO "A07"]
[WhiteElo "2356"]
[BlackElo "1910"]
[Annotator "TA"]
[PlyCount "74"]
[EventDate "2024.05.21"]
[EventType "swiss"]
[EventCountry "IND"]
[SourceTitle "playchess.com"]
[Source "ChessBase"]
[SourceQuality "1"]
[TimeControl "5400+30"]

{[%evp 18,74,16,18,14,9,25,31,19,20,26,16,16,14,15,25,7,10,21,0,52,45,51,44,59,61,58,50,45,34,90,85,103,87,93,38,36,62,338,333,320,300,310,305,377,371,347,134,380,388,383,363,474,475,624,604,707,693,772]} 1. Nf3 {[%emt 0:00:34]} d5 {[%emt 0:06:36]} 2. g3 {[%emt 0:00:16]} Nf6 {[%emt 0:00:43]} 3. Bg2 {[%emt 0:00:12]} c6 {[%emt 0:00:28]} 4. O-O {[%emt 0:02:00]} Bg4 {[%emt 0:00:36]} 5. d3 {[%emt 0:01:32]} Nbd7 {[%emt 0:00:43]} 6. h3 {[%emt 0:00:07]} Bh5 {[%emt 0:01:45]} 7. Qe1 {[%emt 0:01:04]} e5 {[%emt 0:01:09]} 8. e4 {[%emt 0:00:07]} dxe4 {[%emt 0:00:45]} 9. dxe4 {[%emt 0:00:06]} Be7 {[%emt 0:01:17]} 10. Nbd2 {[%emt 0:00:41]} O-O {[%emt 0:01:21]} 11. Nc4 {[%emt 0:00:22]} Qc7 {[%emt 0:00:41]} 12. a4 {[%emt 0:01:18]} Rfe8 {[%emt 0:06:32] White is slightly better.} 13. Nh4 {[%emt 0:04:20]} Rad8 {[%emt 0:20:20]} 14. Bd2 {[%emt 0:04:14]} Nc5 {[%emt 0:03:31][%cal Of6e4]} 15. Nf5 {[%emt 0:04:16]} Bf8 {[%emt 0:06:49]} 16. Bg5 {[%emt 0:01:46]} Ne6 {[%emt 0:04:52]} 17. Bxf6 {[%emt 0:01:44]} gxf6 {[%emt 0:00:02]} 18. c3 {[%emt 0:02:42]} Rd7 {[%emt 0:04:25]} (18... a5 $11) 19. b4 $14 {[%emt 0:13:15]} Red8 {[%emt 0:04:04]} 20. a5 {[%emt 0:02:27]} b5 {[%emt 0:06:26]} 21. axb6 {[%emt 0:00:41]} axb6 {[%emt 0:00:02]} 22. Nce3 {[%emt 0:01:21]} b5 {[%emt 0:02:48]} 23. Ra6 {[%emt 0:11:25]} Rb8 {[%emt 0:11:34]} (23... Ng5 $14) 24. h4 {[%emt 0:06:24]} Rb6 {[%emt 0:05:57]} 25. Ra2 {[%emt 0:00:14]} Rb7 {[%emt 0:02:15] [#]} 26. f4 {[%emt 0:02:58]} exf4 {[%emt 0:02:40]} 27. gxf4 {[%emt 0:00:09] Qg3+ would now be deadly.} Nxf4 $2 {[%emt 0:00:44][%mdl 8192]} ({Better is} 27... Ra7 $14 28. Rxa7 Qxa7) 28. Qg3+ $18 {[%emt 0:00:09]} Ng6 {[%emt 0:00:21]} 29. Qxc7 {[%emt 0:00:07]} Rbxc7 {[%emt 0:03:05] [#]} 30. Ng3 $1 {[%emt 0:00:06][%csl LRf6,LRh5] Excellent horsemanship.} Rd3 {[%emt 0:00:48][%cal Oc7c8]} (30... Bh6 $2 31. Ra8+ (31. Nef5 Bf8 $18) 31... Bf8 32. Nxh5 $18) 31. Nxh5 {[%emt 0:02:26]} Rxe3 {[%emt 0:00:03]} 32. Ra8 {[%emt 0:02:52] Prevents Rc8.} (32. Nxf6+ $18 {is the precise move to win.} Kh8 33. Ra8) 32... Kh8 $2 {[%emt 0:02:02] Loses the game.} (32... Rxc3 $2 {is the wrong capture.} 33. Nxf6+ Kg7 (33... Kh8 $2 34. h5 $18) 34. Ne8+ Kh6 35. Nxc7 $18) (32... Re7 $16 {keeps fighting.}) 33. Nxf6 {[%emt 0:04:15] aiming for h5.} h5 {[%emt 0:00:27]} 34. Nxh5 {[%emt 0:00:45] Strongly threatening Nf6.} c5 {[%emt 0:01:05]} 35. Nf4 {[%emt 0:04:08] White is clearly winning.} Nxf4 {[%emt 0:00:30]} 36. Rxf4 {[%emt 0:00:02]} cxb4 {[%emt 0:00:31]} 37. cxb4 {[%emt 0:00:02]} ({Worse is} 37. Rxf8+ Kg7 38. Kf2 Kxf8 39. Kxe3 bxc3 $11) 37... Rc1+ {[%emt 0:00:32] Weighted Error Value: White=0.15 (very precise) /Black=0.51.  Loses game:     	---       	Black=2      Missed win:     	White=1     	---        Mistake:       	White=1     	Black=2      Inaccurate:     	---       	Black=2      OK:         	White=11    	Black=7      Best:        	White=3     	Black=1      Strong:       	White=1     	---} 1-0

[Event "10th LBHM Open 2024"]
[Site "Pune"]
[Date "2024.05.22"]
[Round "9.5"]
[White "Agnivo Chakraborty"]
[Black "Roy Chowdhury, Saptarshi"]
[Result "1/2-1/2"]
[ECO "B32"]
[WhiteElo "1871"]
[BlackElo "2249"]
[Annotator "RC"]
[PlyCount "61"]
[EventDate "2024.05.21"]
[EventType "swiss"]
[EventCountry "IND"]
[SourceTitle "playchess.com"]
[Source "ChessBase"]
[SourceQuality "1"]
[TimeControl "5400+30"]

1. e4 {[%emt 0:00:04]} c5 {[%emt 0:00:44]} 2. Nf3 {[%emt 0:00:06]} Nc6 {[%emt 0:00:05]} 3. d4 {[%emt 0:00:04]} cxd4 {[%emt 0:00:05]} 4. Nxd4 {[%emt 0:00:05]} e5 {[%emt 0:01:57]} 5. Nb5 {[%emt 0:00:10]} d6 {[%emt 0:00:05]} 6. c4 {[%emt 0:02:51]} Be7 {[%emt 0:00:12]} 7. N1c3 {[%emt 0:00:06]} a6 {[%emt 0:00:04]} 8. Na3 {[%emt 0:00:05]} f5 {[%emt 0:00:05]} 9. exf5 {[%emt 0:02:46]} Bxf5 {[%emt 0:00:25]} 10. Nc2 {[%emt 0:00:34]} Nf6 {[%emt 0:01:22]} 11. Ne3 {[%emt 0:02:25]} Be6 {[%emt 0:08:23]} 12. Bd3 {[%emt 0:01:48]} O-O {[%emt 0:00:10]} 13. O-O {[%emt 0:00:56]} Qd7 {[%emt 0:01:29]} 14. Ne4 {[%emt 0:08:49]} Kh8 {[%emt 0:07:29]} 15. Nxf6 {[%emt 0:20:20]} Bxf6 {[%emt 0:03:26]} 16. Be4 {[%emt 0:03:34]} Rad8 {[%emt 0:04:45]} 17. a4 {[%emt 0:07:21]} Qf7 {[%emt 0:04:51]} 18. Nd5 {[%emt 0:01:59]} Nd4 {[%emt 0:06:49]} 19. Be3 {[%emt 0:05:33]} Bxd5 {[%emt 0:06:00]} 20. Bxd5 {[%emt 0:02:31]} Qc7 {[%emt 0:01:13]} 21. a5 {[%emt 0:03:44]} Rb8 {[%emt 0:01:33]} 22. b4 {[%emt 0:05:35]} b5 {[%emt 0:10:10]} 23. axb6 {[%emt 0:01:01]} Rxb6 {[%emt 0:00:06]} 24. Bd2 {[%emt 0:02:05]} Qe7 {[%emt 0:06:45]} 25. Qg4 {[%emt 0:04:46]} g6 {[%emt 0:02:51]} 26. Ra3 {[%emt 0:01:58]} Nf5 {[%emt 0:06:12]} 27. Rh3 {[%emt 0:00:51]} Qe8 {[%emt 0:00:36]} 28. Re1 {[%emt 0:04:19]} Bg7 {[%emt 0:00:36]} 29. f4 {[%emt 0:02:14]} Rb8 {[%emt 0:02:35]} 30. Bc3 {[%emt 0:01:21]} Ne7 {[%emt 0:07:11]} 31. Qh4 {[%emt 0:05:47]} 1/2-1/2

[Event "10th LBHM Open 2024"]
[Site "Pune"]
[Date "2024.05.22"]
[Round "9.6"]
[White "Dere Pushkar"]
[Black "Banik Hrishikesh Kumar"]
[Result "1-0"]
[ECO "C54"]
[WhiteElo "2209"]
[BlackElo "1869"]
[Annotator "RC"]
[PlyCount "97"]
[EventDate "2024.05.21"]
[EventType "swiss"]
[EventCountry "IND"]
[SourceTitle "playchess.com"]
[Source "ChessBase"]
[SourceQuality "1"]
[TimeControl "5400+30"]

1. e4 {[%emt 0:02:35]} e5 {[%emt 0:00:14]} 2. Nf3 {[%emt 0:02:25]} Nc6 {[%emt 0:00:10]} 3. Bc4 {[%emt 0:00:07]} Bc5 {[%emt 0:00:23]} 4. c3 {[%emt 0:00:05]} Nf6 {[%emt 0:00:11]} 5. d3 {[%emt 0:00:04]} d6 {[%emt 0:00:31]} 6. Bg5 {[%emt 0:00:07]} h6 {[%emt 0:02:12]} 7. Bh4 {[%emt 0:00:04]} g5 {[%emt 0:08:11]} 8. Bg3 {[%emt 0:00:05]} a6 {[%emt 0:12:03]} 9. a4 {[%emt 0:04:41]} Ba7 {[%emt 0:01:20]} 10. Nbd2 {[%emt 0:00:53]} Qe7 {[%emt 0:02:13]} 11. b4 {[%emt 0:01:40]} a5 {[%emt 0:09:10]} 12. b5 {[%emt 0:04:05]} Nd8 {[%emt 0:00:14]} 13. O-O {[%emt 0:00:36]} h5 {[%emt 0:13:40]} 14. h4 {[%emt 0:01:35]} g4 {[%emt 0:02:08]} 15. Ne1 {[%emt 0:01:50]} Ne6 {[%emt 0:01:47]} 16. Ba2 {[%emt 0:03:30]} Nf8 {[%emt 0:03:42]} 17. Nc4 {[%emt 0:03:37]} Ng6 {[%emt 0:05:49]} 18. Nc2 {[%emt 0:01:52]} Be6 {[%emt 0:01:48]} 19. N2e3 {[%emt 0:01:45]} Bxe3 {[%emt 0:08:38]} 20. Nxe3 {[%emt 0:01:34]} Nd7 {[%emt 0:01:27]} 21. d4 {[%emt 0:00:39]} exd4 {[%emt 0:02:50]} 22. cxd4 {[%emt 0:00:37]} Bxa2 {[%emt 0:01:06]} 23. Nf5 {[%emt 0:00:29]} Qf6 {[%emt 0:00:53]} 24. Rxa2 {[%emt 0:00:10]} Ne7 {[%emt 0:01:48]} 25. Ne3 {[%emt 0:03:26]} Qe6 {[%emt 0:02:37]} 26. Rc2 {[%emt 0:00:48]} Rc8 {[%emt 0:01:07]} 27. Qd3 {[%emt 0:00:52]} Nf6 {[%emt 0:03:44]} 28. e5 {[%emt 0:00:59]} dxe5 {[%emt 0:00:24]} 29. Bxe5 {[%emt 0:00:51]} O-O {[%emt 0:01:12]} 30. Rxc7 {[%emt 0:01:39]} Rxc7 {[%emt 0:00:10]} 31. Bxc7 {[%emt 0:00:03]} Nfd5 {[%emt 0:00:18]} 32. Nxd5 {[%emt 0:01:53]} Nxd5 {[%emt 0:00:17]} 33. Bxa5 {[%emt 0:01:03]} Ra8 {[%emt 0:00:10]} 34. Re1 {[%emt 0:00:58]} Qf6 {[%emt 0:00:36]} 35. Qe4 {[%emt 0:05:33]} Rxa5 {[%emt 0:01:18]} 36. Qxd5 {[%emt 0:00:11]} Rxa4 {[%emt 0:01:30]} 37. Qxh5 {[%emt 0:00:05]} Kf8 {[%emt 0:06:08]} 38. Re4 {[%emt 0:06:34]} b6 {[%emt 0:01:56]} 39. Qxg4 {[%emt 0:02:25]} Ra1+ {[%emt 0:00:28]} 40. Kh2 {[%emt 0:00:05]} Qxf2 {[%emt 0:00:08]} 41. Qc8+ {[%emt 0:00:33]} Kg7 {[%emt 0:00:08]} 42. Rg4+ {[%emt 0:00:09]} Kf6 {[%emt 0:00:12]} 43. Qh8+ {[%emt 0:00:06]} Ke6 {[%emt 0:00:57]} 44. d5+ {[%emt 0:00:12]} Kxd5 {[%emt 0:00:12]} 45. Qxa1 {[%emt 0:00:17]} f5 {[%emt 0:00:11]} 46. Qd1+ {[%emt 0:00:18]} Kc5 {[%emt 0:00:07]} 47. Qc1+ {[%emt 0:00:05]} Kxb5 {[%emt 0:00:09]} 48. Qc4+ {[%emt 0:00:03]} Ka5 {[%emt 0:00:09]} 49. Qa4# {[%emt 0:00:03]} 1-0